bitfinex-derivatives/quotes_BTCF0:USTF0_20250719
["timestamp","ask_amount","ask_price","bid_price","bid_amount"]
[1752895539699,0.27964556,118380.0,118370.0,1.1873333]
[1752895539888,0.35548063,118380.0,118370.0,1.1873333]
[1752895540399,0.27964556,118380.0,118370.0,1.1873333]
[1752895541602,0.34043441,118380.0,118370.0,1.1873333]
[1752895544302,0.34043441,118380.0,118370.0,1.34630064]
[1752895544799,0.07902991,118380.0,118370.0,1.50526798]
[1752895545200,0.01824106,118380.0,118370.0,1.50526798]
[1752895545906,0.01824106,118380.0,118370.0,1.34630064]
[1752895546606,0.01824106,118380.0,118370.0,1.50526798]
[1752895547106,0.01824106,118380.0,118370.0,1.80046798]
[1752895547306,0.01824106,118380.0,118370.0,1.81916473]
[1752895547706,0.01824106,118380.0,118370.0,1.66019739]
[1752895550905,0.01824106,118380.0,118370.0,1.80049739]
[1752895551708,0.01824106,118380.0,118370.0,1.66019739]
[1752895553104,0.01824106,118380.0,118370.0,1.81916473]
[1752895555412,0.01824106,118380.0,118370.0,1.66019739]
[1752895557013,0.001,118380.0,118370.0,1.64150064]
[1752895558509,0.05023,118380.0,118370.0,1.64150064]
[1752895559412,0.05808,118380.0,118370.0,1.64150064]
[1752895560013,0.2269041,118380.0,118370.0,1.64150064]
[1752895560408,0.05808,118380.0,118370.0,1.64150064]
[1752895560812,0.2269041,118380.0,118370.0,1.64150064]
[1752895561114,0.2269041,118380.0,118370.0,1.4825333]
[1752895561415,0.2269041,118380.0,118370.0,1.64150064]
[1752895561712,0.2190541,118380.0,118370.0,1.64150064]
[1752895561914,0.05023,118380.0,118370.0,1.64150064]
[1752895563114,0.05023,118380.0,118370.0,1.80041252]
[1752895564418,0.05023,118380.0,118370.0,2.16121252]
[1752895564918,0.05023,118380.0,118370.0,2.00226748]
[1752895566818,0.05023,118380.0,118370.0,2.58630748]
[1752895568410,0.2190541,118380.0,118370.0,2.58630748]
[1752895568615,0.2269041,118380.0,118370.0,2.58630748]
[1752895570019,0.05808,118380.0,118370.0,2.58630748]
[1752895571718,0.2269041,118380.0,118370.0,2.58630748]
[1752895574925,0.2433541,118380.0,118370.0,2.58630748]
[1752895576322,0.2269041,118380.0,118370.0,2.58630748]
[1752895580929,0.2269041,118380.0,118370.0,1.86470748]
[1752895581130,0.2269041,118380.0,118370.0,2.58630748]
[1752895581626,0.2269041,118380.0,118370.0,2.5675733]
[1752895581930,0.2609941,118380.0,118370.0,2.58630748]
[1752895582130,0.2652141,118380.0,118370.0,2.58630748]
[1752895584934,0.2652141,118380.0,118370.0,2.7452776]
[1752895594445,0.2652141,118380.0,118370.0,2.0236776]
[1752895594645,0.2652141,118380.0,118370.0,2.7452776]
[1752895598651,0.2190541,118380.0,118370.0,2.7452776]
[1752895599342,0.05023,118380.0,118370.0,2.7452776]
[1752895600852,0.05023,118380.0,118370.0,2.8854776]
[1752895601753,0.05023,118380.0,118370.0,2.7452776]
[1752895601948,0.219054,118380.0,118370.0,2.7452776]
[1752895602857,0.05023,118380.0,118370.0,2.7452776]
[1752895603155,0.2190541,118380.0,118370.0,2.7452776]
[1752895603456,0.05023,118380.0,118370.0,2.7452776]
[1752895603855,0.2190541,118380.0,118370.0,2.7452776]
[1752895604357,0.2190541,118380.0,118370.0,2.4273733]
[1752895604558,0.2190541,118380.0,118370.0,2.7452776]
[1752895606053,0.2273041,118380.0,118370.0,2.7452776]
[1752895606359,0.05848,118380.0,118370.0,2.7452776]
[1752895607151,0.07541047,118380.0,118370.0,2.76444163]
[1752895609859,0.07541047,118380.0,118370.0,2.18040163]
[1752895610762,0.06716047,118380.0,118370.0,2.18040163]
[1752895612159,0.07541047,118380.0,118370.0,2.18040163]
[1752895639383,0.07541047,118380.0,118370.0,1.45880163]
[1752895639579,0.07541047,118380.0,118370.0,2.18040163]
[1752895640179,0.24423167,118380.0,118370.0,2.18040163]
[1752895640382,0.07541047,118380.0,118370.0,2.18040163]
[1752895643788,0.24423177,118380.0,118370.0,1.86249733]
[1752895644084,0.26021177,118380.0,118370.0,2.02144948]
[1752895644485,0.28089177,118380.0,118370.0,2.02144948]
[1752895644684,0.28089177,118380.0,118370.0,2.18040163]
[1752895644885,0.28089177,118380.0,118370.0,2.02032948]
[1752895645084,0.34168062,118380.0,118370.0,2.01225948]
[1752895646088,0.50063277,118380.0,118370.0,2.01117948]
[1752895646384,0.28089177,118380.0,118370.0,1.84234078]
[1752895646687,0.43984392,118380.0,118370.0,2.01117628]
[1752895646985,0.43984392,118380.0,118370.0,1.84234078]
[1752895647386,0.43984392,118380.0,118370.0,2.01117628]
[1752895647587,0.43984392,118380.0,118370.0,1.71597628]
[1752895647784,0.50063277,118380.0,118370.0,1.42321628]
[1752895647983,0.50063277,118380.0,118370.0,1.71597628]
[1752895648184,0.43984392,118380.0,118370.0,1.71597628]
[1752895648383,0.43984392,118380.0,118370.0,1.70305628]
[1752895648885,0.50063277,118380.0,118370.0,1.70305628]
[1752895649189,0.43984392,118380.0,118370.0,1.70305628]
[1752895650785,0.59879607,118380.0,118370.0,1.08250863]
[1752895651191,0.59879607,118380.0,118370.0,1.37522863]
[1752895651581,0.59879607,118380.0,118370.0,1.53418078]
[1752895651785,0.59879607,118380.0,118370.0,1.37522863]
[1752895652089,1.09879607,118380.0,118370.0,1.37522863]
[1752895653991,1.15958492,118380.0,118370.0,1.53418078]
[1752895654190,1.09879607,118380.0,118370.0,1.37522863]
[1752895655291,1.09879607,118380.0,118370.0,1.3560646]
[1752895656093,0.93984392,118380.0,118370.0,1.51501675]
[1752895656786,1.00063277,118380.0,118370.0,1.51501675]
[1752895657293,1.00063277,118380.0,118370.0,1.3560646]
[1752895657482,1.00063277,118380.0,118370.0,1.51501675]
[1752895663498,1.01706398,118380.0,118370.0,1.51501675]
[1752895664000,1.17601613,118380.0,118370.0,1.51501675]
[1752895664500,1.11522728,118380.0,118370.0,1.51501675]
[1752895664702,1.11522728,118380.0,118370.0,1.3560646]
[1752895664901,1.11522728,118380.0,118370.0,1.51501675]
[1752895665200,0.95627513,118380.0,118370.0,1.51501675]
[1752895665403,0.79732298,118380.0,118370.0,1.51501675]
[1752895665602,0.79732298,118380.0,118370.0,1.68385215]
[1752895665803,0.95627513,118380.0,118370.0,1.68385215]
[1752895666204,0.79732298,118380.0,118370.0,1.68385215]
[1752895666404,0.95627513,118380.0,118370.0,1.68385215]
[1752895666702,0.93984392,118380.0,118370.0,1.68385215]
[1752895666902,0.95627438,118380.0,118370.0,1.68385215]
[1752895667303,0.95627438,118380.0,118370.0,1.5249]
[1752895667502,0.95627438,118380.0,118370.0,1.68385215]
[1752895668106,1.11522653,118380.0,118370.0,1.68385215]
[1752895669712,1.11522653,118380.0,118370.0,1.32975215]
[1752895673500,0.95627438,118380.0,118370.0,1.32975215]
[1752895674306,1.01706323,118380.0,118370.0,1.32975215]
[1752895674705,0.95627438,118380.0,118370.0,1.32975215]
[1752895675107,1.11522653,118380.0,118370.0,1.32975215]
[1752895676208,1.17601538,118380.0,118370.0,1.32975215]
[1752895677911,1.17601538,118380.0,118370.0,1.33300215]
[1752895678209,1.01706323,118380.0,118370.0,1.33300215]
[1752895679911,1.03210945,118380.0,118370.0,1.32975215]
[1752895680111,0.95627438,118380.0,118370.0,1.32975215]
[1752895680312,1.01705773,118380.0,118370.0,1.32975215]
[1752895681311,0.95627438,118380.0,118370.0,1.32975215]
[1752895681514,0.79732223,118380.0,118370.0,1.32975215]
[1752895681703,0.86502145,118380.0,118370.0,1.32975215]
[1752895682014,0.95627438,118380.0,118370.0,1.33300215]
[1752895682312,0.79732223,118380.0,118370.0,1.33300215]
[1752895682512,0.95627438,118380.0,118370.0,1.33300215]
[1752895683511,0.95627438,118380.0,118370.0,1.32975215]
[1752895685013,1.11522653,118380.0,118370.0,1.32975215]
[1752895687013,1.1910616,118380.0,118370.0,1.32975215]
[1752895687516,1.03210945,118380.0,118370.0,1.32975215]
[1752895688415,1.03210945,118380.0,118370.0,0.96895215]
[1752895688614,1.03210945,118380.0,118370.0,1.32975215]
[1752895689606,0.8731573,118380.0,118370.0,1.32975215]
[1752895689805,1.01710636,118380.0,118370.0,1.32975215]
[1752895690209,1.01710636,118380.0,118370.0,1.16091675]
[1752895690414,1.01710636,118380.0,118370.0,0.80011675]
[1752895690614,1.01710636,118380.0,118370.0,1.16091675]
[1752895690914,1.01710636,118380.0,118370.0,1.0019646]
[1752895691114,1.01710636,118380.0,118370.0,1.16091675]
[1752895692820,0.85815421,118380.0,118370.0,1.16091675]
[1752895693021,1.01710636,118380.0,118370.0,1.32975215]
[1752895694422,1.01710636,118380.0,118370.0,0.96895215]
[1752895694721,1.01710636,118380.0,118370.0,1.16091675]
[1752895695225,1.01710636,118380.0,118370.0,1.32975215]
[1752895696623,1.01710636,118380.0,118370.0,1.16091675]
[1752895698429,0.95627438,118380.0,118370.0,1.16091675]
[1752895699025,1.11522653,118380.0,118370.0,1.16091675]
[1752895701032,0.95627438,118380.0,118370.0,1.16091675]
[1752895701733,1.0171105,118380.0,118370.0,1.16091675]
[1752895702631,1.0171105,118380.0,118370.0,1.0019646]
[1752895702832,1.0171105,118380.0,118370.0,1.16091675]
[1752895703133,1.17606265,118380.0,118370.0,1.16091675]
[1752895704035,0.85815835,118380.0,118370.0,1.16091675]
[1752895704334,1.17606265,118380.0,118370.0,1.32975195]
[1752895704735,1.17606265,118380.0,118370.0,1.1707998]
[1752895704936,1.17606265,118380.0,118370.0,1.32975195]
[1752895705336,0.85815835,118380.0,118370.0,1.32975195]
[1752895705537,1.17606265,118380.0,118370.0,1.32975195]
[1752895706438,1.17606265,118380.0,118370.0,0.96895195]
[1752895706636,1.0171105,118380.0,118370.0,1.32975195]
[1752895706936,1.0171105,118380.0,118370.0,0.96895195]
[1752895707131,1.0171105,118380.0,118370.0,1.32975195]
[1752895707434,0.85815835,118380.0,118370.0,1.32975195]
[1752895707631,1.0171105,118380.0,118370.0,1.32975195]
[1752895711339,1.0171105,118380.0,118370.0,1.1707998]
[1752895711539,1.0171105,118380.0,118370.0,1.32975195]
[1752895712940,1.00068004,118380.0,118370.0,1.32975195]
[1752895713237,1.01714134,118380.0,118370.0,1.32975195]
[1752895714543,0.95630522,118380.0,118370.0,1.32975195]
[1752895715042,1.01714134,118380.0,118370.0,1.32975195]
[1752895715244,0.95630522,118380.0,118370.0,1.32975195]
[1752895716146,1.01714204,118380.0,118370.0,1.32975195]
[1752895716533,0.95630522,118380.0,118370.0,1.32975195]
[1752895717944,1.01714202,118380.0,118370.0,1.32975195]
[1752895718144,0.85818987,118380.0,118370.0,1.32975195]
[1752895718446,1.01714202,118380.0,118370.0,1.32975195]
[1752895718747,1.01714202,118380.0,118370.0,1.1707998]
[1752895719045,1.01714202,118380.0,118370.0,1.32975195]
[1752895726354,0.95630522,118380.0,118370.0,1.32975195]
[1752895727844,0.95630522,118380.0,118370.0,1.1707998]
[1752895728050,0.95630522,118380.0,118370.0,1.32975195]
[1752895729548,0.9566189,118380.0,118370.0,1.32975195]
[1752895729746,1.03245397,118380.0,118370.0,1.26131053]
[1752895730143,1.01599267,118380.0,118370.0,1.26131053]
[1752895734747,1.01599267,118380.0,118370.0,1.26987959]
[1752895738353,1.01599267,118380.0,118370.0,1.11092744]
[1752895738552,1.01599267,118380.0,118370.0,1.26987959]
[1752895740050,0.9401576,118380.0,118370.0,1.26987959]
[1752895741657,0.78120545,118380.0,118370.0,1.26987959]
[1752895741857,0.9401576,118380.0,118370.0,1.26987959]
[1752895742450,0.9401576,118380.0,118370.0,1.10104439]
[1752895742656,1.09910975,118380.0,118370.0,0.93539224]
[1752895744859,1.09910975,118380.0,118370.0,0.64267224]
[1752895745058,1.09910975,118380.0,118370.0,0.93439224]
[1752895748060,1.15994097,118380.0,118370.0,0.93439224]
[1752895749158,1.15994097,118380.0,118370.0,0.93435224]
[1752895749354,1.09910975,118380.0,118370.0,0.93435224]
[1752895750061,1.09910975,118380.0,118370.0,0.64267224]
[1752895750262,1.09910975,118380.0,118370.0,0.93431224]
[1752895751062,0.78120545,118380.0,118370.0,0.93431224]
[1752895751262,1.09910975,118380.0,118370.0,0.93431224]
[1752895753567,1.17494482,118380.0,118370.0,0.93431224]
[1752895756066,0.85704052,118380.0,118370.0,0.93431224]
[1752895756265,1.17494482,118380.0,118370.0,0.93431224]
[1752895756766,1.17494482,118380.0,118370.0,0.57351224]
[1752895756968,1.17494482,118380.0,118370.0,0.93431224]
[1752895757769,1.17494482,118380.0,118370.0,0.93754224]
[1752895758266,1.17494482,118380.0,118370.0,0.57674224]
[1752895758460,1.17494482,118380.0,118370.0,0.93754224]
[1752895765685,1.17494482,118380.0,118370.0,0.57674224]
[1752895765880,1.17494482,118380.0,118370.0,0.93754224]
[1752895766381,0.85704052,118380.0,118370.0,0.93754224]
[1752895766582,1.17494482,118380.0,118370.0,0.93754224]
[1752895769782,1.09910975,118380.0,118370.0,0.93754224]
[1752895770987,1.09910975,118380.0,118370.0,0.57674224]
[1752895771188,1.09910975,118380.0,118370.0,0.93754224]
[1752895775285,1.09910975,118380.0,118370.0,0.57674224]
[1752895775485,1.09910975,118380.0,118370.0,0.93754224]
[1752895775887,1.09910975,118380.0,118370.0,0.57674224]
[1752895776089,1.09910975,118380.0,118370.0,0.93754224]
[1752895777984,1.09910975,118380.0,118370.0,0.57674224]
[1752895778288,1.09910975,118380.0,118370.0,0.93754224]
[1752895779797,1.15994462,118380.0,118370.0,0.93754224]
[1752895780893,1.09910975,118380.0,118370.0,0.93754224]
[1752895781695,1.09910975,118380.0,118370.0,0.57674224]
[1752895781992,1.09910975,118380.0,118370.0,0.93754224]
[1752895783996,1.17512684,118380.0,118370.0,0.93754224]
[1752895784687,1.17512684,118380.0,118370.0,0.57674224]
[1752895784890,1.17512684,118380.0,118370.0,0.93754224]
[1752895785488,1.17512684,118380.0,118370.0,0.57674224]
[1752895785693,1.17512684,118380.0,118370.0,0.93754224]
[1752895786098,0.85722254,118380.0,118370.0,0.57674224]
[1752895786298,0.85722254,118380.0,118370.0,0.93754224]
[1752895786494,1.17512684,118380.0,118370.0,0.93754224]
[1752895791797,1.17512684,118380.0,118370.0,0.57674224]
[1752895791997,1.17512684,118380.0,118370.0,0.93754224]
[1752895793907,1.09910975,118380.0,118370.0,0.93754224]
[1752895798307,1.17512684,118380.0,118370.0,0.93754224]
[1752895799807,1.09910975,118380.0,118370.0,0.93754224]
[1752895800501,0.78120545,118380.0,118370.0,0.93754224]
[1752895800703,1.09910975,118380.0,118370.0,0.93754224]
[1752895801410,0.78120545,118380.0,118370.0,0.93754224]
[1752895801607,1.09910975,118380.0,118370.0,0.93754224]
[1752895802316,1.16552755,118380.0,118370.0,0.93754224]
[1752895806311,0.84762325,118380.0,118370.0,0.93754224]
[1752895806611,1.16552755,118380.0,118370.0,0.93754224]
[1752895808914,1.16552755,118380.0,118370.0,0.57674224]
[1752895809614,1.16552755,118380.0,118370.0,0.93754224]
[1752895810504,0.92364034,118380.0,118370.0,0.93754224]
[1752895810708,1.24154464,118380.0,118370.0,1.10637734]
[1752895811012,1.24154464,118380.0,118370.0,0.93754224]
[1752895813313,0.92364034,118380.0,118370.0,0.93754224]
[1752895813515,1.24154464,118380.0,118370.0,0.93754224]
[1752895815113,0.92364034,118380.0,118370.0,0.93754224]
[1752895815311,1.24154464,118380.0,118370.0,0.93754224]
[1752895817715,0.2577194,118360.0,118350.0,0.36213]
[1752895818013,0.97130478,118360.0,118350.0,0.12802179]
[1752895818220,0.85524833,118360.0,118350.0,0.31898179]
[1752895818420,0.87319473,118360.0,118350.0,0.31898179]
[1752895818914,0.87319473,118360.0,118350.0,0.02802179]
[1752895819115,0.87314237,118360.0,118350.0,0.29296]
[1752895819322,0.81235263,118360.0,118350.0,0.29296]
[1752895819823,0.88836972,118360.0,118350.0,0.29296]
[1752895820022,1.38836972,118360.0,118350.0,0.29296]
[1752895820321,1.38836972,118360.0,118350.0,0.29096]
[1752895820511,1.39036972,118360.0,118350.0,0.29096]
[1752895820912,1.39036972,118360.0,118350.0,0.55179771]
[1752895821115,1.39036972,118360.0,118350.0,0.55379771]
[1752895821917,1.39036972,118360.0,118350.0,0.55179771]
[1752895822127,1.39136972,118360.0,118350.0,0.55179771]
[1752895824226,1.39136972,118360.0,118350.0,0.52406399]
[1752895826627,1.53501042,118360.0,118350.0,0.52406399]
[1752895826827,1.37605827,118360.0,118350.0,0.52406399]
[1752895827829,1.37605827,118360.0,118350.0,0.23310399]
[1752895828029,1.37605827,118360.0,118350.0,0.52406399]
[1752895829829,1.31535263,118360.0,118350.0,0.52406399]
[1752895830534,1.47430478,118360.0,118350.0,0.52406399]
[1752895831431,1.53501042,118360.0,118350.0,0.52406399]
[1752895831631,1.37605827,118360.0,118350.0,0.52406399]
[1752895832131,1.53501042,118360.0,118350.0,0.52406399]
[1752895832627,1.37605827,118360.0,118350.0,0.52406399]
[1752895833436,1.53501042,118360.0,118350.0,0.52406399]
[1752895833834,1.37605827,118360.0,118350.0,0.52406399]
[1752895835837,1.05815397,118360.0,118350.0,0.52406399]
[1752895836044,1.37605827,118360.0,118350.0,0.52406399]
[1752895836336,1.73685827,118360.0,118350.0,0.52406399]
[1752895843546,1.89581042,118360.0,118350.0,0.52406399]
[1752895843849,1.75326677,118360.0,118350.0,0.52406399]
[1752895844249,1.91221892,118360.0,118350.0,0.52406399]
[1752895844449,1.99671049,118360.0,118350.0,0.52406399]
[1752895846552,1.7770527,118360.0,118350.0,0.52406399]
[1752895846746,1.83783453,118360.0,118350.0,0.52406399]
[1752895846947,1.7770527,118360.0,118350.0,0.52406399]
[1752895847454,1.93600485,118360.0,118350.0,0.52406399]
[1752895847650,2.01202194,118360.0,118350.0,0.52406399]
[1752895848255,1.85306979,118360.0,118350.0,0.52406399]
[1752895851559,2.01202194,118360.0,118350.0,0.52406399]
[1752895854459,1.65122194,118360.0,118350.0,0.52406399]
[1752895854760,2.01202194,118360.0,118350.0,0.52406399]
[1752895855958,1.85306979,118360.0,118350.0,0.23310399]
[1752895856160,2.01202194,118360.0,118350.0,0.16464297]
[1752895856360,1.93600485,118360.0,118350.0,0.16464297]
[1752895857059,1.99563417,118360.0,118350.0,0.16464297]
[1752895861153,2.06448623,118360.0,118350.0,0.16464297]
[1752895862064,1.90553408,118360.0,118350.0,0.16464297]
[1752895862459,1.83668202,118360.0,118350.0,0.16464297]
[1752895862965,1.99563417,118360.0,118350.0,0.16464297]
[1752895863166,1.98042095,118360.0,118350.0,0.16464297]
[1752895863465,1.91959635,118360.0,118350.0,0.16464297]
[1752895863668,1.99563417,118360.0,118350.0,0.16464297]
[1752895863856,1.91959635,118360.0,118350.0,0.16464297]
[1752895864569,2.02576545,118360.0,118350.0,0.16464297]
[1752895865457,1.91959635,118360.0,118350.0,0.16464297]
[1752895865767,1.9956128,118360.0,118350.0,0.16464297]
[1752895867365,2.0616859,118360.0,118350.0,0.16464297]
[1752895870068,1.98566945,118360.0,118350.0,0.16464297]
[1752895870270,1.6149821,118360.0,118350.0,0.16464297]
[1752895870467,2.02576545,118360.0,118350.0,0.16464297]
[1752895871370,1.91959635,118360.0,118350.0,0.16464297]
[1752895872069,1.91959635,118360.0,118350.0,0.05053421]
[1752895873570,1.4427399,118360.0,118350.0,0.05053421]
[1752895873765,1.91959635,118360.0,118350.0,0.05053421]
[1752895874071,2.02596928,118360.0,118350.0,0.05053421]
[1752895875877,1.54911283,118360.0,118350.0,0.05053421]
[1752895876073,1.86701713,118360.0,118350.0,0.05053421]
[1752895876576,1.54911283,118360.0,118350.0,0.05053421]
[1752895876776,1.86701713,118360.0,118350.0,0.05053421]
[1752895877274,1.54911283,118360.0,118350.0,0.05053421]
[1752895877475,1.86701713,118360.0,118350.0,0.05053421]
[1752895877675,1.7606442,118360.0,118350.0,0.05053421]
[1752895879168,1.4427399,118360.0,118350.0,0.05053421]
[1752895879369,0.99757635,118360.0,118350.0,0.76363624]
[1752895879770,0.93679411,118360.0,118350.0,0.76363624]
[1752895880377,0.93679411,118360.0,118350.0,0.43582039]
[1752895880576,0.93679411,118360.0,118350.0,0.59477254]
[1752895880878,0.93579411,118360.0,118350.0,0.76363624]
[1752895881272,0.74176196,118360.0,118350.0,0.76363624]
[1752895881468,0.73163164,118360.0,118350.0,0.92258839]
[1752895881669,0.6698494,118360.0,118350.0,0.92258839]
[1752895881877,0.7182494,118360.0,118350.0,0.76363624]
[1752895882681,0.2182494,118360.0,118350.0,0.60468409]
[1752895883076,0.2182494,118360.0,118350.0,0.76363624]
[1752895883379,0.38477155,118360.0,118350.0,0.76363624]
[1752895884781,0.2258194,118360.0,118350.0,0.76363624]
[1752895885082,0.38477155,118360.0,118350.0,0.76363624]
[1752895886378,0.2258194,118360.0,118350.0,0.76363624]
[1752895886874,0.38477155,118360.0,118350.0,0.76363624]
[1752895887279,0.2258194,118360.0,118350.0,0.76363624]
[1752895887579,0.38477155,118360.0,118350.0,0.76363624]
[1752895887785,0.2258194,118360.0,118350.0,0.76363624]
[1752895887985,0.38477155,118360.0,118350.0,0.76363624]
[1752895888280,0.38477155,118360.0,118350.0,0.60468409]
[1752895888486,0.38477155,118360.0,118350.0,0.76363624]
[1752895889286,0.40013155,118360.0,118350.0,0.76363624]
[1752895890486,0.2411794,118360.0,118350.0,0.76363624]
[1752895890689,0.40013155,118360.0,118350.0,0.76363624]
[1752895890886,0.40013155,118360.0,118350.0,0.60468409]
[1752895891089,0.40013155,118360.0,118350.0,0.76363624]
[1752895891390,0.2411794,118360.0,118350.0,0.76363624]
[1752895891589,0.40013155,118360.0,118350.0,0.76363624]
[1752895891990,0.41661155,118360.0,118350.0,0.76363624]
[1752895892291,0.42058155,118360.0,118350.0,0.76363624]
[1752895897590,0.42058155,118360.0,118350.0,0.60468409]
[1752895897896,0.42058155,118360.0,118350.0,0.76363624]
[1752895898099,0.42058155,118360.0,118350.0,0.60468409]
[1752895898292,0.42058155,118360.0,118350.0,0.76363624]
[1752895898788,0.42058155,118360.0,118350.0,0.40283624]
[1752895898986,0.42058155,118360.0,118350.0,1.12443624]
[1752895899895,0.2616294,118360.0,118350.0,1.12443624]
[1752895900194,0.42058155,118360.0,118350.0,1.12443624]
[1752895900590,0.2616294,118360.0,118350.0,1.12443624]
[1752895900893,0.42058155,118360.0,118350.0,1.12443624]
[1752895901295,0.2616294,118360.0,118350.0,1.12443624]
[1752895901495,0.42058155,118360.0,118350.0,1.12443624]
[1752895901995,0.2616294,118360.0,118350.0,1.12443624]
[1752895902293,0.42058155,118360.0,118350.0,1.12443624]
[1752895902697,0.42058155,118360.0,118350.0,0.40283624]
[1752895902895,0.42058155,118360.0,118350.0,1.12443624]
[1752895903396,0.42058155,118360.0,118350.0,0.96548409]
[1752895903585,0.42058155,118360.0,118350.0,1.12443624]
[1752895906301,0.2616294,118360.0,118350.0,1.12443624]
[1752895906503,0.42058155,118360.0,118350.0,1.12443624]
[1752895909806,0.48136379,118360.0,118350.0,1.12443624]
[1752895910406,0.48136379,118360.0,118350.0,0.95339254]
[1752895911404,0.98136379,118360.0,118350.0,0.95339254]
[1752895911703,1.14031594,118360.0,118350.0,0.95339254]
[1752895912402,1.14031594,118360.0,118350.0,1.12225624]
[1752895912605,0.98136379,118360.0,118350.0,1.12225624]
[1752895913903,0.82241164,118360.0,118350.0,1.12225624]
[1752895914207,0.98136379,118360.0,118350.0,1.12225624]
[1752895914708,0.82241164,118360.0,118350.0,1.12225624]
[1752895914912,0.98136379,118360.0,118350.0,1.12225624]
[1752895915111,0.98136379,118360.0,118350.0,0.96330409]
[1752895915304,0.98136379,118360.0,118350.0,1.12225624]
[1752895915608,0.82241164,118360.0,118350.0,1.12225624]
[1752895915806,0.98136379,118360.0,118350.0,1.12225624]
[1752895916307,0.82241164,118360.0,118350.0,1.12225624]
[1752895916509,0.98136379,118360.0,118350.0,1.12574624]
[1752895917805,0.98136379,118360.0,118350.0,0.76494624]
[1752895919810,0.92058155,118360.0,118350.0,0.76494624]
[1752895921811,0.7616294,118360.0,118350.0,0.76494624]
[1752895922509,0.92058155,118360.0,118350.0,0.76494624]
[1752895927319,0.7616294,118360.0,118350.0,0.76494624]
[1752895927715,0.92058155,118360.0,118350.0,0.76494624]
[1752895929922,0.92058155,118360.0,118350.0,0.76145624]
[1752895930318,0.7616294,118360.0,118350.0,0.76145624]
[1752895932527,0.92058155,118360.0,118350.0,0.76145624]
[1752895932926,0.7616294,118360.0,118350.0,0.76145624]
[1752895933226,0.92058155,118360.0,118350.0,0.76145624]
[1752895934722,0.7616294,118360.0,118350.0,0.76145624]
[1752895934927,0.92058155,118360.0,118350.0,0.76145624]
[1752895938730,0.7616294,118360.0,118350.0,0.76494624]
[1752895938932,0.92058155,118360.0,118350.0,0.76494624]
[1752895939929,0.92058155,118360.0,118350.0,0.76145624]
[1752895940329,0.92058155,118360.0,118350.0,0.60250409]
[1752895940629,0.92058155,118360.0,118350.0,0.76145624]
[1752895942331,0.92058155,118360.0,118350.0,0.60250409]
[1752895942631,0.92058155,118360.0,118350.0,0.76145624]
[1752895942927,0.92058155,118360.0,118350.0,0.60250409]
[1752895943129,0.92058155,118360.0,118350.0,0.76145624]
[1752895943430,0.7616294,118360.0,118350.0,0.76145624]
[1752895943630,0.92058155,118360.0,118350.0,0.76145624]
[1752895943932,0.7616294,118360.0,118350.0,0.76145624]
[1752895948544,0.77893092,118360.0,118350.0,0.76145624]
[1752895948931,0.77893092,118360.0,118350.0,0.92040839]
[1752895951742,0.77893092,118360.0,118350.0,0.76145624]
[1752895954743,0.77893092,118360.0,118350.0,0.60250409]
[1752895955042,0.77893092,118360.0,118350.0,0.76145624]
[1752895959847,0.83971316,118360.0,118350.0,0.76145624]
[1752895962849,0.77893092,118360.0,118350.0,0.76145624]
[1752895966351,0.77893092,118360.0,118350.0,0.92040839]
[1752895966546,0.77893092,118360.0,118350.0,0.60250409]
[1752895966748,0.77893092,118360.0,118350.0,0.92040839]
[1752895966948,0.83971316,118360.0,118350.0,0.92040839]
[1752895967154,0.83971316,118360.0,118350.0,0.60250409]
[1752895967355,0.83971316,118360.0,118350.0,0.76145624]
[1752895968354,0.83971316,118360.0,118350.0,0.92040839]
[1752895968549,0.83971316,118360.0,118350.0,0.76145624]
[1752895969554,0.83971316,118360.0,118350.0,0.60250409]
[1752895969754,0.83971316,118360.0,118350.0,0.76145624]
[1752895969954,0.77893092,118360.0,118350.0,0.76145624]
[1752895970256,0.77893092,118360.0,118350.0,0.60250409]
[1752895970456,0.77893092,118360.0,118350.0,0.76145624]
[1752895972856,0.77893092,118360.0,118350.0,0.40065624]
[1752895973160,0.77893092,118360.0,118350.0,0.76145624]
[1752895973855,0.77893092,118360.0,118350.0,0.40065624]
[1752895974161,0.77893092,118360.0,118350.0,0.76145624]
[1752895974464,0.93788307,118360.0,118350.0,0.60250409]
[1752895974664,0.77893092,118360.0,118350.0,0.76145624]
[1752895974858,0.93788307,118360.0,118350.0,0.76145624]
[1752895975058,0.77893092,118360.0,118350.0,0.76145624]
[1752895975258,0.93788307,118360.0,118350.0,0.76145624]
[1752895979166,0.7616294,118360.0,118350.0,0.76145624]
[1752895979464,0.92058155,118360.0,118350.0,0.76145624]
[1752895980264,0.7616294,118360.0,118350.0,0.76145624]
[1752895981966,0.7616294,118360.0,118350.0,0.60250409]
[1752895982165,0.92058155,118360.0,118350.0,0.76145624]
[1752895983465,0.7616294,118360.0,118350.0,0.76145624]
[1752895986867,0.7616294,118360.0,118350.0,0.40065624]
[1752895987067,0.7616294,118360.0,118350.0,0.76145624]
[1752895995675,0.7616294,118360.0,118350.0,0.92040839]
[1752895996081,0.7616294,118360.0,118350.0,0.92206839]
[1752895996082,0.59278,118360.0,118350.0,0.92206839]
[1752895996270,0.7451495,118360.0,118350.0,1.02206839]
[1752895996674,0.2451495,118360.0,118350.0,1.02206839]
[1752895997374,0.2611395,118360.0,118350.0,1.02206839]
[1752895999477,0.2611395,118360.0,118350.0,1.31726839]
[1752895999679,0.2611395,118360.0,118350.0,1.3173198]
[1752896000078,0.2611395,118360.0,118350.0,0.9994155]
[1752896000277,0.2611395,118360.0,118350.0,1.3173198]
[1752896000674,0.2611395,118360.0,118350.0,1.9015198]
[1752896003078,0.2258195,118360.0,118350.0,1.9015198]
[1752896010077,0.05697,118360.0,118350.0,1.9015198]
[1752896010376,0.0494,118360.0,118350.0,1.9015198]
[1752896011075,0.1962579,118370.0,118360.0,0.01517]
[1752896011277,0.22960324,118380.0,118370.0,0.2591252]
[1752896011481,0.22960324,118380.0,118370.0,1.05644845]
[1752896012182,0.168821,118380.0,118370.0,1.05644845]
[1752896012778,0.168821,118380.0,118370.0,1.05744845]
[1752896013172,0.217151,118380.0,118370.0,1.05744845]
[1752896013473,0.224421,118380.0,118370.0,1.05744845]
[1752896013678,0.240911,118380.0,118370.0,1.05744845]
[1752896013883,0.241911,118380.0,118370.0,1.05744845]
[1752896015084,0.240911,118380.0,118370.0,1.05744845]
[1752896015286,0.240911,118380.0,118370.0,1.10798266]
[1752896016983,0.240911,118380.0,118370.0,0.74718266]
[1752896017285,0.240911,118380.0,118370.0,1.46878266]
[1752896017481,0.217151,118380.0,118370.0,1.46878266]
[1752896017688,0.217151,118380.0,118370.0,1.15087836]
[1752896017885,0.217151,118380.0,118370.0,1.46878266]
[1752896020285,0.0556,118390.0,118380.0,0.194811]
[1752896020492,0.2607167,118390.0,118380.0,1.2298553]
[1752896020690,0.2607167,118390.0,118380.0,1.3298553]
[1752896020992,0.41966885,118390.0,118380.0,1.09941315]
[1752896021187,0.41966885,118390.0,118380.0,0.940461]
[1752896021490,0.41966885,118390.0,118380.0,1.11512315]
[1752896021685,0.42066885,118390.0,118380.0,1.11512315]
[1752896022786,0.2617167,118390.0,118380.0,1.11512315]